bitfinex-derivatives/quotes_ETHF0:USTF0_20250217
["timestamp","ask_amount","ask_price","bid_price","bid_amount"]
[1739816274073,0.73314,2727.7,2727.4,3.21329521]
[1739816274269,2.759,2727.8,2727.4,3.21329521]
[1739816274472,2.759,2727.8,2727.4,0.00549521]
[1739816274670,0.73317,2727.5,2727.4,0.00549521]
[1739816274871,2.759,2727.8,2727.4,0.00549521]
[1739816275076,0.73317,2727.5,2727.4,0.00549521]
[1739816276077,3.3212,2727.8,2727.4,0.00549521]
[1739816276273,3.3212,2727.8,2727.4,3.21329521]
[1739816276576,0.3672,2727.9,2727.4,3.21329521]
[1739816276770,2.758,2728.2,2727.8,3.2078]
[1739816277077,2.758,2728.4,2728.1,3.2078]
[1739816277275,0.3672,2728.8,2728.2,0.5502]
[1739816277476,3.2078,2729.0,2728.4,0.73291]
[1739816277776,4.95667,2729.0,2728.4,3.2078]
[1739816277991,0.73286,2728.7,2728.4,3.2078]
[1739816278193,1.6625,2729.1,2728.4,3.2078]
[1739816278488,2.758,2729.0,2728.7,3.2078]
[1739816278689,0.5622,2729.1,2728.7,3.2078]
[1739816278989,0.5622,2729.1,2728.7,3.94064]
[1739816279191,0.5622,2729.1,2728.7,3.2078]
[1739816279381,3.7589,2729.5,2728.7,3.2078]
[1739816279586,3.49067,2729.4,2728.8,0.73281]
[1739816279791,2.758,2729.4,2728.9,0.5502]
[1739816280092,0.73269,2729.3,2728.9,0.5502]
[1739816280288,2.758,2729.4,2728.8,0.00549521]
[1739816280692,3.49067,2729.4,2728.8,0.73828521]
[1739816280888,2.758,2729.4,2728.8,0.00549521]
[1739816281089,2.758,2729.4,2729.1,3.94053]
[1739816281395,0.5492,2729.7,2729.2,0.73269]
[1739816281591,2.758,2729.8,2729.4,3.2078]
[1739816281891,3.48451883,2729.8,2729.4,3.2078]
[1739816282394,2.75195883,2729.8,2729.4,3.2078]
[1739816282593,2.75195883,2729.8,2729.5,0.73262]
[1739816282788,2.75195883,2729.8,2729.4,3.94045]
[1739816283687,2.75195883,2729.8,2729.4,3.2078]
[1739816283996,2.75195883,2729.8,2729.4,3.94045]
[1739816284296,3.48953,2729.9,2729.4,3.2078]
[1739816284490,2.757,2729.9,2729.4,3.2078]
[1739816284694,2.757,2729.9,2729.4,3.94044]
[1739816284886,2.757,2729.9,2729.5,0.73263]
[1739816285196,3.48952,2729.9,2729.4,3.94044]
[1739816285791,2.757,2729.9,2729.4,3.94044]
[1739816285982,1.1144,2730.2,2729.4,3.2078]
[1739816286188,2.757,2730.1,2729.7,3.2078]
[1739816286384,0.5478,2730.2,2729.8,0.73253]
[1739816286688,2.757,2730.6,2730.1,0.73246]
[1739816286883,2.757,2730.6,2730.0,3.2078]
[1739816287096,0.73239,2730.4,2730.0,3.21329521]
[1739816287395,2.757,2730.6,2730.0,3.94578521]
[1739816287593,0.73243,2730.3,2730.0,3.21329521]
[1739816288094,2.757,2730.6,2730.0,3.21329521]
[1739816288395,0.73247,2730.1,2730.0,3.21329521]
[1739816288695,0.73247,2730.1,2730.0,0.00549521]
[1739816288992,3.48947,2730.1,2730.0,0.00549521]
[1739816289389,1.28635,2730.2,2730.0,0.00549521]
[1739816289587,2.756,2730.3,2730.0,0.00549521]
[1739816289787,0.73247,2730.1,2730.0,0.00549521]
[1739816290495,2.756,2730.3,2730.0,0.00549521]
[1739816290697,0.73246,2730.2,2730.0,0.00549521]
[1739816290990,2.756,2730.3,2730.0,3.21329521]
[1739816291398,0.5612,2730.6,2730.0,3.21329521]
[1739816291590,2.756,2730.5,2730.0,3.21329521]
[1739816291794,0.73247,2730.1,2730.0,3.21329521]
[1739816291991,0.73247,2730.1,2730.0,0.00549521]
[1739816292495,3.5742,2731.0,2730.0,3.21329521]
[1739816292689,0.7324,2730.4,2730.0,0.00549521]
[1739816292894,3.8609,2730.7,2730.0,3.21329521]
[1739816293090,0.5401,2730.7,2730.4,3.94017]
[1739816293393,2.756,2730.8,2730.4,3.2078]
[1739816293394,0.73228,2730.8,2730.4,3.2078]
[1739816293592,0.3664,2731.0,2730.4,3.2078]
[1739816293796,0.3664,2731.0,2730.4,3.94018]
[1739816294196,0.73229,2730.8,2730.4,3.2078]
[1739816294398,0.3664,2731.0,2730.4,3.2078]
[1739816294592,0.7323,2730.8,2730.4,3.2078]
[1739816294787,5.9638,2731.1,2730.4,3.2078]
[1739816294994,0.73245,2730.2,2730.0,0.00549521]
[1739816295193,0.73243,2730.3,2730.0,0.00549521]
[1739816295390,1.83091,2730.5,2730.0,0.00549521]
[1739816295599,0.73247,2730.1,2730.0,0.00549521]
[1739816296193,4.4362,2730.6,2730.0,3.21329521]
[1739816296394,0.73247,2730.1,2730.0,0.00549521]
[1739816296689,0.3664,2730.5,2730.0,0.00549521]
[1739816296993,4.4362,2730.6,2730.0,0.00549521]
[1739816297296,0.73241,2730.4,2730.0,0.00549521]
[1739816297494,4.8026,2730.6,2730.0,0.00549521]
[1739816297495,0.73238,2730.5,2730.0,0.00549521]
[1739816297690,0.73241,2730.4,2730.0,0.00549521]
[1739816297895,2.755,2730.9,2730.2,4.36765575]
[1739816298101,2.755,2730.9,2730.3,0.5699]
[1739816298402,4.58568,2730.9,2730.3,0.5699]
[1739816298603,0.5645,2730.8,2730.3,0.5699]
[1739816298903,1.83299,2730.8,2730.3,1.30231]
[1739816299097,2.755,2730.9,2730.5,0.73235]
[1739816299400,2.755,2730.9,2730.4,3.2078]
[1739816299894,0.73236,2730.5,2730.4,3.2078]
[1739816300097,3.2078,2730.7,2730.0,0.00549521]
[1739816300299,0.73247,2730.1,2730.0,0.00549521]
[1739816300596,3.94027,2730.1,2730.0,0.00549521]
[1739816300800,0.73247,2730.1,2730.0,0.00549521]
[1739816300988,20.3,2730.5,2730.0,0.00549521]
[1739816301193,7.6407,2730.6,2730.0,0.00549521]
[1739816301393,0.73247,2730.1,2730.0,0.00549521]
[1739816301592,1.83091,2730.5,2730.0,0.00549521]
[1739816301794,9.47158,2730.6,2730.0,0.00549521]
[1739816301999,7.6407,2730.6,2730.0,0.00549521]
[1739816302496,7.6407,2730.6,2730.0,0.54989521]
[1739816302696,0.73237,2730.5,2730.0,0.54989521]
[1739816302901,5.16525,2730.6,2730.0,0.54989521]
[1739816303097,3.8967,2730.6,2730.2,3.2078]
[1739816303406,4.62905,2730.6,2730.2,3.2078]
[1739816303597,3.8967,2730.6,2730.2,3.2078]
[1739816303797,4.62905,2730.6,2730.2,3.2078]
[1739816304098,3.8967,2730.6,2730.2,3.2078]
[1739816304403,3.8967,2730.6,2730.0,0.54989521]
[1739816304404,0.73245,2730.2,2730.0,0.00549521]
[1739816304898,3.3322,2730.6,2730.0,0.00549521]
[1739816305098,3.2078,2730.8,2730.4,0.73238]
[1739816305292,3.2078,2730.8,2730.3,3.48181362]
[1739816305494,1.1369,2731.1,2730.5,3.2078]
[1739816305699,2.755,2731.0,2730.7,0.7323]
[1739816305903,0.3664,2731.2,2730.9,6.68961362]
[1739816306197,3.3165,2731.6,2730.9,6.68961362]
[1739816306392,3.3165,2731.6,2731.0,1.081]
[1739816306592,3.3165,2731.6,2731.1,0.73219]
[1739816306800,3.3165,2731.6,2731.2,3.93997]
[1739816306999,3.3165,2731.6,2731.2,3.2078]
[1739816307395,0.73216,2731.3,2731.0,1.081]
[1739816308302,3.3165,2731.6,2731.0,1.081]
[1739816308499,3.2078,2731.7,2731.0,1.081]
[1739816308703,2.755,2731.7,2731.2,3.93996]
[1739816308901,0.73211,2731.5,2731.2,3.2078]
[1739816309102,0.73208,2731.6,2731.2,3.2078]
[1739816309406,2.755,2731.7,2731.2,3.2078]
[1739816309902,0.73209,2731.6,2731.2,3.2078]
[1739816310102,2.755,2731.7,2731.2,3.2078]
[1739816310307,0.7321,2731.5,2731.2,3.2078]
[1739816310506,0.73211,2731.5,2731.2,3.2078]
[1739816310694,2.755,2731.7,2731.2,3.2078]
[1739816310893,0.73211,2731.5,2731.2,3.2078]
[1739816311299,1.83017,2731.6,2731.0,1.081]
[1739816311500,0.73216,2731.3,2731.0,1.081]
[1739816311700,0.73218,2731.2,2731.0,1.081]
[1739816312304,2.9497,2731.6,2731.0,1.081]
[1739816312305,1.1195,2731.6,2731.0,1.081]
[1739816312606,1.1195,2731.6,2731.0,1.81323]
[1739816312807,0.7321,2731.5,2731.0,1.81321]
[1739816313008,1.1195,2731.6,2731.2,7.56745835]
[1739816313207,1.1195,2731.6,2731.2,8.29960835]
[1739816313411,1.1195,2731.6,2731.2,7.56745835]
[1739816313606,1.1195,2731.6,2731.3,0.73214]
[1739816313801,3.2078,2732.3,2731.5,7.56745835]
[1739816314000,3.2078,2732.3,2731.0,4.7421]
[1739816314001,0.3664,2732.5,2731.8,7.56745835]
[1739816314311,0.29294223,2733.3,2732.4,7.56745835]
[1739816314500,2.754,2733.4,2732.7,7.56745835]
[1739816314811,3.8662,2733.4,2732.8,0.00549521]
[1739816315006,0.7317,2733.0,2732.8,0.00549521]
[1739816315203,4.4024,2733.4,2732.8,0.00549521]
[1739816315511,0.73171,2733.0,2732.8,0.00549521]
[1739816316204,4.4024,2733.4,2732.8,0.00549521]
[1739816316205,0.73169,2733.1,2732.8,0.00549521]
[1739816316410,0.73172,2732.9,2732.8,0.00549521]
[1739816316609,3.2078,2733.2,2732.8,0.00549521]
[1739816316610,0.73171,2733.0,2732.8,0.00549521]
[1739816316809,3.2078,2733.2,2732.8,0.00549521]
[1739816317013,0.73172,2732.9,2732.8,0.00549521]
[1739816317508,2.753,2733.0,2732.8,0.00549521]
[1739816317710,3.93952,2732.9,2732.8,0.00549521]
[1739816318501,24.23952,2732.9,2732.8,0.00549521]
[1739816318913,29.5078,2732.9,2731.9,1.0963]
[1739816319107,0.73196,2732.0,2731.9,1.0963]
[1739816319307,2.753,2732.3,2731.3,3.2078]
[1739816319502,0.73201,2731.9,2731.6,3.2078]
[1739816319709,0.73208,2731.6,2731.3,3.7481]
[1739816319903,2.753,2731.8,2731.3,3.2078]
[1739816320109,0.00549521,2731.7,2731.2,0.00549521]
[1739816320613,0.73755521,2731.7,2731.3,3.2078]
[1739816320810,0.00549521,2731.7,2731.3,3.2078]
[1739816321316,0.00549521,2731.7,2731.2,0.00549521]
[1739816321614,0.73215,2731.3,2731.2,0.00549521]
[1739816321817,2.753,2731.3,2731.2,0.00549521]
[1739816322405,3.48515,2731.3,2731.2,0.00549521]
[1739816323309,2.753,2731.3,2731.2,0.00549521]
[1739816323514,3.48515,2731.3,2731.2,0.00549521]
[1739816325611,0.00549521,2731.7,2731.2,4.36515356]
[1739816325914,0.73213,2731.4,2731.2,3.21329521]
[1739816326112,0.73215,2731.3,2731.2,3.21329521]
[1739816326420,0.73215,2731.3,2731.2,0.00549521]
[1739816327614,3.2078,2731.4,2730.3,4.35965835]
[1739816327814,5.03835,2731.1,2730.2,3.2078]
[1739816328011,0.73239,2730.4,2730.2,3.2078]
[1739816328414,2.753,2730.7,2730.2,3.2078]
[1739816328920,2.753,2730.7,2730.2,3.21329521]
[1739816329114,2.753,2730.6,2730.3,4.35965835]
[1739816329620,0.73237,2730.5,2730.3,4.35965835]
[1739816329915,3.48535,2730.6,2730.2,3.21329521]
[1739816330211,2.753,2730.6,2730.2,3.21329521]
[1739816330410,3.2078,2731.2,2730.3,4.35965835]
[1739816330617,3.2078,2731.2,2730.5,3.94015]
[1739816330618,3.48521,2731.1,2730.5,3.94015]
[1739816331013,2.753,2731.0,2730.5,3.94015]
[1739816331220,3.48524,2731.0,2730.5,3.2078]
[1739816331413,2.753,2730.9,2730.5,3.2078]
[1739816331817,3.48527,2730.9,2730.5,3.2078]
[1739816332118,3.2078,2731.2,2730.6,4.35965835]
[1739816332317,0.5516,2731.4,2730.8,3.2078]
[1739816332620,2.753,2731.3,2730.9,5.50245835]
[1739816332813,2.753,2731.3,2730.9,6.23469835]
[1739816333221,2.753,2731.3,2730.9,5.50245835]
[1739816333725,2.753,2731.3,2730.9,1.1428]
[1739816334322,2.753,2731.3,2730.9,6.23468835]
[1739816334521,2.753,2731.3,2730.9,5.50245835]
[1739816335019,3.48515,2731.3,2730.9,5.50245835]
[1739816335222,2.753,2731.3,2730.9,5.50245835]
[1739816335523,3.48516,2731.3,2730.9,6.23469835]
[1739816335720,2.753,2731.3,2731.1,3.2078]
[1739816335921,0.7321,2731.5,2731.1,3.2078]
[1739816336120,0.00549521,2731.7,2731.1,3.2078]
[1739816336322,0.00549521,2731.7,2731.4,3.2078]
[1739816336717,0.00549521,2731.7,2731.4,3.9399]
[1739816336917,0.00549521,2731.7,2731.4,3.2078]
[1739816337225,0.00549521,2731.7,2731.5,0.5593]
[1739816337721,5.9608,2732.1,2731.6,1.31407]
[1739816337922,0.73198,2732.0,2731.6,0.582]
[1739816338117,5.9608,2732.1,2731.6,0.582]
[1739816338317,0.73203,2731.8,2731.6,0.582]
[1739816338725,0.73204,2731.7,2731.6,0.582]
[1739816339827,0.73209,2731.5,2731.4,0.00549521]
[1739816340027,6.69289,2731.5,2731.4,0.00549521]
[1739816340528,26.99289,2731.5,2731.4,0.00549521]
[1739816340821,26.2608,2731.5,2730.8,3.745]
[1739816341014,0.5616,2731.4,2730.8,3.745]
[1739816341328,0.73218,2731.2,2730.8,3.745]
[1739816341529,0.5616,2731.4,2730.8,3.745]
[1739816341826,3.2078,2731.5,2731.0,4.35965835]
[1739816342018,0.73216,2731.3,2730.8,3.75049521]
[1739816342220,0.73216,2731.3,2730.8,4.48276521]
[1739816342421,2.752,2731.6,2731.1,3.2078]
[1739816342620,2.752,2731.6,2731.3,5.09180835]
[1739816343028,2.752,2731.6,2731.4,0.5756]
[1739816343521,3.21329521,2732.0,2731.4,3.7834]
[1739816343727,0.73203,2731.8,2731.4,3.7834]
[1739816344021,2.752,2731.9,2731.4,3.7834]
[1739816344219,4.58201,2731.9,2731.2,0.5332]
[1739816344619,3.21329521,2732.0,2731.3,0.73214]
[1739816344821,3.484,2731.9,2731.3,0.73214]
[1739816345023,3.484,2731.9,2731.4,3.2078]
[1739816345322,2.752,2731.9,2731.4,3.2078]
[1739816345829,0.73203,2731.8,2731.4,3.2078]
[1739816346125,3.48403,2731.8,2731.4,3.2078]
[1739816346428,2.752,2731.8,2731.4,3.93991]
[1739816346625,3.48402,2731.8,2731.4,3.93991]
[1739816346930,0.73205,2731.7,2731.4,3.2078]
[1739816347127,2.752,2731.8,2731.4,3.2078]
[1739816347325,0.73209,2731.5,2731.4,3.2078]
[1739816347530,2.752,2731.8,2731.4,3.2078]
[1739816347727,0.73209,2731.6,2731.4,3.2078]
[1739816348033,2.752,2731.8,2731.4,3.2078]
[1739816348230,0.73208,2731.6,2731.4,3.2078]
[1739816348529,2.752,2731.8,2731.4,3.2078]
[1739816349034,0.73207,2731.6,2731.4,3.2078]
[1739816349327,2.752,2731.8,2731.4,3.2078]
[1739816349532,0.73209,2731.5,2731.4,3.2078]
[1739816350230,3.2078,2731.7,2731.2,0.5332]
[1739816350424,0.73215,2731.3,2731.2,0.5332]
[1739816350829,2.752,2731.3,2731.0,0.5482]
[1739816351026,0.7322,2731.1,2730.8,0.00549521]
[1739816351222,0.73225,2730.9,2730.8,0.00549521]
[1739816352522,0.73244,2730.3,2730.1,0.5656]
[1739816352723,0.73244,2730.2,2730.1,0.5656]
[1739816353226,2.752,2730.4,2730.1,0.5656]
[1739816353424,3.7817,2731.1,2730.1,0.5656]
[1739816353425,2.752,2730.8,2730.3,3.2078]
[1739816353629,0.5663,2731.3,2730.7,0.73229]
[1739816353929,3.32379521,2731.3,2730.8,0.5592]
[1739816354429,2.752,2731.2,2730.9,3.94004]
[1739816354934,2.752,2731.2,2730.9,3.94005]
[1739816355124,2.752,2731.2,2730.9,3.2078]
[1739816355327,2.752,2731.2,2731.0,0.73222]
[1739816355830,2.752,2731.2,2730.9,3.2078]
[1739816356030,0.00549521,2731.3,2731.1,0.7322]
[1739816356226,0.00549521,2731.3,2731.2,3.2078]
[1739816357025,0.73764521,2731.3,2731.2,3.2078]
[1739816357225,0.00549521,2731.3,2730.9,3.94005]
[1739816357421,0.73218,2731.2,2730.9,3.2078]
[1739816357622,0.73218,2731.2,2730.0,1.26537475]
[1739816357623,1.83064,2730.9,2730.0,1.26537475]
[1739816357826,3.2078,2730.1,2730.0,1.26537475]
[1739816358131,2.752,2730.3,2730.0,0.00549521]
[1739816358430,3.94016,2730.6,2730.0,0.00549521]
[1739816358431,5.9598,2730.6,2730.0,0.73798521]
[1739816358734,5.9598,2730.6,2730.1,0.5567]
[1739816358735,6.69216,2730.6,2730.1,0.5567]
[1739816358928,6.69214,2730.6,2730.1,0.5567]
[1739816359130,3.2078,2730.6,2730.1,0.5567]
[1739816359326,3.2078,2730.6,2730.2,0.5587]
[1739816359529,3.2078,2730.6,2730.3,0.7324]
[1739816359834,2.752,2730.8,2730.2,0.5587]
[1739816360036,2.752,2730.8,2730.4,0.73237]
[1739816360235,2.752,2730.8,2730.3,0.73239]
[1739816360429,2.752,2730.8,2730.2,3.7665]
[1739816360730,3.2078,2731.1,2730.5,3.2078]
[1739816360928,0.00549521,2731.3,2730.5,3.2078]
[1739816361128,0.73765521,2731.3,2730.5,3.2078]
[1739816361329,0.00549521,2731.3,2730.5,3.2078]
[1739816361629,0.00549521,2731.3,2730.9,0.73223]
[1739816361825,0.73765521,2731.3,2731.0,1.1017]
[1739816362335,0.00549521,2731.3,2731.1,3.2078]
[1739816362728,0.00549521,2731.3,2731.2,0.73217]
[1739816362930,0.00549521,2731.3,2731.1,3.93998]
[1739816363139,0.00549521,2731.3,2731.1,3.2078]
[1739816363342,0.00549521,2731.3,2731.1,3.93999]
[1739816365233,0.00549521,2731.3,2731.2,0.73217]
[1739816365427,3.2078,2731.9,2731.1,9.2078]
[1739816365728,2.752,2732.1,2731.4,3.2078]
[1739816365933,3.48396,2732.1,2731.6,0.73205]
[1739816366131,2.752,2732.1,2731.4,3.2078]
[1739816366428,3.2078,2732.5,2731.7,3.2078]
[1739816366636,0.73186,2732.4,2732.0,0.73196]
[1739816366827,3.2078,2732.5,2732.0,0.73196]
[1739816367028,0.00549521,2732.4,2732.0,0.73196]
[1739816367225,0.00549521,2732.4,2732.1,0.73193]
[1739816367425,0.00549521,2732.4,2731.8,1.1102]
[1739816367636,0.7319,2732.3,2731.9,0.73197]
[1739816367938,0.00549521,2732.4,2731.8,1.1102]
[1739816368136,0.73195,2732.1,2731.8,1.1102]
[1739816368334,0.00549521,2732.4,2731.8,1.1102]
[1739816368634,0.00549521,2732.4,2731.8,1.8422]
[1739816368839,0.00549521,2732.4,2731.9,1.28687]
[1739816369133,0.00549521,2732.4,2731.9,0.5549]
[1739816369737,0.00549521,2732.4,2732.0,3.2078]
[1739816370440,0.73189,2732.3,2731.9,1.28687]
[1739816370627,0.00549521,2732.4,2731.9,0.5549]
[1739816371034,0.00549521,2732.4,2732.0,3.2078]
[1739816371234,0.00549521,2732.4,2731.9,0.5549]
[1739816371442,0.73192,2732.2,2731.9,0.5549]
[1739816371738,3.21329521,2732.4,2732.0,0.54969011]
[1739816371933,0.73191,2732.2,2732.1,0.54969011]
[1739816372140,3.21329521,2732.4,2732.1,0.54969011]
[1739816372332,3.94515521,2732.4,2732.2,0.54969011]
[1739816372539,3.94515521,2732.4,2731.9,1.28687]
[1739816372540,3.21329521,2732.4,2732.3,0.54969011]
[1739816372736,3.94514521,2732.4,2732.3,0.54969011]
[1739816373534,10.09129521,2732.4,2731.5,0.00549521]
[1739816373743,3.2078,2731.8,2731.5,0.00549521]
[1739816373933,0.73207,2731.6,2731.5,0.00549521]
[1739816374438,0.73206,2731.7,2731.5,0.00549521]
[1739816374743,0.73207,2731.6,2731.5,0.00549521]
[1739816375042,3.2078,2731.8,2731.5,0.00549521]
[1739816376044,2.751,2731.9,2731.5,0.00549521]
[1739816376045,2.751,2731.9,2731.6,0.73205]
[1739816376352,2.751,2731.9,2731.7,0.73203]
[1739816376646,2.751,2731.9,2731.6,0.558]
[1739816376941,0.73199,2731.9,2731.6,0.558]
[1739816377132,2.751,2732.0,2731.6,0.558]
[1739816377433,0.73204,2731.7,2731.6,0.558]
[1739816377636,3.93983,2731.8,2731.6,0.558]
[1739816377835,3.93983,2731.8,2731.5,0.00549521]
[1739816377836,3.2078,2731.8,2731.5,0.00549521]
[1739816378745,3.48297,2732.0,2731.5,0.00549521]
[1739816378946,3.48297,2732.0,2731.5,0.73757521]
[1739816379243,3.48298,2732.0,2731.5,0.73757521]
[1739816379445,2.751,2732.0,2731.5,0.00549521]
[1739816379844,3.2078,2732.1,2731.5,1.83570521]
[1739816380142,3.2078,2732.1,2732.0,0.73196]
[1739816380348,3.2078,2732.1,2731.6,4.90045835]
[1739816380647,0.73197,2732.0,2731.6,1.27285]
[1739816381045,0.73197,2732.0,2731.7,0.73202]
[1739816381243,0.73197,2732.0,2731.8,0.5338]
[1739816381439,3.2078,2732.1,2731.8,0.5338]
[1739816381838,3.93976,2732.1,2731.8,0.5338]
[1739816382035,0.73196,2732.0,2731.8,0.5338]
[1739816382248,0.73199,2731.9,2731.8,0.5338]
[1739816382548,0.73197,2732.0,2731.8,0.5338]
[1739816382745,0.73199,2731.9,2731.8,0.5338]
[1739816383045,0.73207,2731.6,2731.5,0.00549521]
[1739816384250,0.73206,2731.7,2731.5,0.00549521]
[1739816384642,0.73207,2731.6,2731.5,0.00549521]
[1739816385148,2.75,2731.8,2731.5,0.00549521]
[1739816385550,2.75,2731.8,2731.6,0.5459374]
[1739816385845,2.75,2731.8,2731.7,0.54594539]
[1739816387044,3.48201,2731.8,2731.7,0.54594539]
[1739816387245,2.75,2731.8,2731.7,0.54594539]
[1739816387444,3.2078,2732.1,2731.8,0.73201]
[1739816387743,3.2078,2732.1,2731.9,0.54598713]
[1739816387943,6.68973,2732.1,2732.0,0.54598713]
[1739816388348,5.9578,2732.1,2732.0,0.54648747]
[1739816388550,6.68973,2732.1,2732.0,0.54648747]
[1739816389647,5.9578,2732.1,2732.0,0.54524361]
[1739816389848,3.2078,2732.1,2732.0,0.54524361]
[1739816390047,3.21329521,2732.4,2732.0,0.54524361]
[1739816390243,5.96329521,2732.4,2731.9,1.82997]
[1739816390437,0.00549521,2732.4,2732.3,0.73188]
[1739816391047,0.00549521,2732.4,2732.2,0.73189]
[1739816391544,0.00549521,2732.4,2732.0,1.1189]
[1739816391750,0.00549521,2732.4,2732.3,0.73188]
[1739816393848,0.00549521,2732.4,2732.0,1.1189]
[1739816394352,0.00549521,2732.4,2732.3,0.73188]
[1739816394653,0.00549521,2732.4,2732.2,0.7319]
[1739816395053,0.00549521,2732.4,2732.0,1.1189]
[1739816395248,0.00549521,2732.4,2731.6,1.25987954]
[1739816395249,3.2078,2732.1,2731.6,1.25987954]
[1739816395443,0.73204,2731.7,2731.6,1.83987954]
[1739816395654,0.73204,2731.7,2731.6,1.25987954]
[1739816395849,0.73207,2731.6,2731.5,0.00549521]
[1739816396448,4.35637,2731.6,2731.5,0.00549521]
[1739816396651,4.2008,2731.6,2730.8,0.5524]
[1739816396858,0.73222,2731.1,2730.8,0.5524]
[1739816397048,3.2078,2730.9,2730.8,0.5524]
[1739816397245,3.2078,2730.9,2730.4,4.46767954]
[1739816397445,0.73224,2731.0,2730.4,4.46767954]
[1739816397648,0.73229,2730.8,2730.4,3.2078]
[1739816397845,2.749,2731.1,2730.4,3.2078]
[1739816397846,0.73228,2730.9,2730.4,3.2078]
[1739816398048,0.00549521,2731.0,2730.4,3.21329521]
[1739816398244,0.00549521,2731.0,2730.4,3.94567521]
[1739816398457,0.00549521,2731.0,2730.5,0.73234]
[1739816398858,0.00549521,2731.0,2730.4,0.00549521]
[1739816399158,0.00549521,2731.0,2730.5,0.73235]
[1739816399460,0.00549521,2731.0,2730.4,3.21329521]
[1739816399656,0.00549521,2731.0,2730.7,0.73231]
[1739816399853,0.00549521,2731.0,2730.7,0.73229]
[1739816400158,0.00549521,2731.0,2730.4,3.21329521]
[1739816400352,0.73773521,2731.0,2730.4,3.21329521]
[1739816400550,0.00549521,2731.0,2730.4,3.21329521]
[1739816400747,0.73227,2730.9,2730.4,3.21329521]
[1739816400951,0.00549521,2731.0,2730.5,0.73235]
[1739816401561,0.00549521,2731.0,2730.6,0.54386345]
[1739816401760,0.00549521,2731.0,2730.7,0.54386345]
[1739816402061,3.94007,2730.9,2730.8,0.54386345]
[1739816402957,9.94005,2730.9,2730.8,7.79e-06]
[1739816403253,9.94005,2730.9,2730.4,0.00549521]
[1739816403254,24.9026,2730.9,2730.4,0.00549521]
[1739816403460,2.75,2730.8,2730.4,0.00549521]
[1739816403660,5.33487,2730.9,2730.4,0.00549521]
[1739816403858,2.75,2730.8,2730.4,1.31686521]
[1739816404159,2.75,2730.7,2730.4,0.58449521]
[1739816404460,0.73236,2730.5,2730.4,0.00549521]
[1739816405157,3.94015,2730.6,2730.4,0.00549521]
[1739816405358,0.73236,2730.5,2730.4,0.00549521]
[1739816405761,10.35965835,2730.5,2729.4,3.2078]
[1739816405958,0.73249,2730.1,2729.6,0.5336]
[1739816406159,3.2078,2730.2,2729.6,0.5336]
[1739816406459,0.73248,2730.1,2729.7,3.2078]
[1739816407056,5.9578,2730.2,2729.7,3.2078]
[1739816407256,5.9578,2730.2,2729.6,0.53909521]
[1739816407663,0.73253,2729.9,2729.6,0.53909521]
[1739816408059,5.9578,2730.2,2729.6,0.53909521]
[1739816408261,0.73251,2730.0,2729.6,0.53909521]
[1739816408564,5.9578,2730.2,2729.6,0.53909521]
[1739816409368,3.2078,2729.9,2729.6,0.53909521]
[1739816409659,5.9578,2729.9,2729.6,0.53909521]
[1739816410063,0.73256,2729.8,2729.6,0.53909521]
[1739816410259,5.9578,2729.9,2729.6,0.53909521]
[1739816410665,0.73258,2729.7,2729.6,0.00549521]
[1739816410965,0.73269,2729.3,2728.9,0.5387]
[1739816411161,2.75,2729.2,2728.9,0.5387]
[1739816411557,2.75,2729.2,2728.9,1.27148]
[1739816411761,2.75,2729.2,2728.9,0.5387]
[1739816412060,2.75,2729.2,2729.1,0.73274]
[1739816412261,2.75,2729.2,2729.0,0.5788]
[1739816412661,3.48272,2729.2,2729.0,0.5788]
[1739816413167,2.75,2729.2,2729.0,0.5788]
[1739816413363,0.73276,2729.0,2728.9,0.5387]
[1739816413563,0.73276,2729.0,2728.9,0.53265883]
[1739816413758,3.2078,2729.1,2728.9,0.53265883]
[1739816414262,0.00549521,2729.3,2729.2,0.73271]
[1739816414456,0.00549521,2729.3,2728.9,0.53265883]
[1739816414457,2.75549521,2729.3,2728.9,0.53265883]
[1739816414661,2.75549521,2729.3,2729.1,0.73272]
[1739816414860,2.75549521,2729.3,2728.9,0.53265883]
[1739816415059,2.75549521,2729.3,2729.2,0.73271]
[1739816415461,2.75549521,2729.3,2729.1,0.73274]
[1739816415864,0.00549521,2729.3,2729.2,0.73271]
[1739816416460,2.75,2729.6,2729.5,0.73263]
[1739816416966,3.2078,2729.7,2729.2,1.1066]
[1739816417461,0.73264,2729.5,2729.2,1.1066]
[1739816418068,3.21329521,2729.7,2729.2,1.1066]
[1739816418260,0.73268,2729.4,2729.2,0.5626]
[1739816418460,5.9578,2729.3,2728.9,0.53265883]
[1739816418662,0.73274,2729.1,2728.9,0.53265883]
[1739816419262,0.73275,2729.1,2728.9,0.53265883]
[1739816419471,2.75,2729.2,2728.9,0.53265883]
[1739816419673,3.94056,2729.0,2728.9,0.53265883]
[1739816419863,3.2078,2729.0,2727.8,7.56745835]
[1739816420069,3.2078,2728.7,2728.1,0.733]
[1739816420263,2.75,2728.6,2728.2,0.73295]
[1739816420470,2.75,2728.6,2728.0,1.1271]
[1739816420668,3.2078,2729.0,2728.7,0.73283]
[1739816420861,2.75,2728.9,2728.4,3.2078]
[1739816421067,2.75,2728.9,2728.6,0.73285]
[1739816421269,3.48279,2728.9,2728.7,0.5524]
[1739816421467,7.10965835,2728.9,2728.3,0.00549521]
[1739816421669,0.73289,2728.6,2728.3,0.00549521]
[1739816421974,3.2078,2728.4,2728.3,0.00549521]
[1739816422469,0.73293,2728.4,2728.3,0.00549521]
[1739816422769,6.69073,2728.4,2728.3,0.00549521]
[1739816423069,12.69073,2728.4,2728.3,0.00549521]
[1739816423267,4.35965835,2727.9,2727.3,0.5307]